bitfinex-derivatives/quotes_SOLF0:USTF0_20241024
["timestamp","ask_amount","ask_price","bid_price","bid_amount"]
[1729782162920,5.8022,175.83,175.71,28.61839548]
[1729782163827,5.8022,175.83,175.74,2.8472]
[1729782164031,5.8022,175.83,175.69,24.03839548]
[1729782164322,24.03839548,175.81,175.72,2.8474]
[1729782164530,1.2597,175.8,175.72,2.8474]
[1729782165123,2.8468,175.77,175.72,2.8474]
[1729782166315,4.58,175.79,175.69,4.58]
[1729782166520,1.2597,175.8,175.76,2.8468]
[1729782168218,1.2222,175.83,175.73,4.68]
[1729782168423,1.2222,175.83,175.79,2.8463]
[1729782168621,1.2222,175.83,175.73,4.68]
[1729782169724,2.8459,175.82,175.77,2.8466]
[1729782170124,1.2222,175.83,175.73,4.68]
[1729782170316,1.2222,175.83,175.75,2.847]
[1729782170523,1.2222,175.83,175.73,4.68]
[1729782170825,2.8468,175.77,175.72,2.8474]
[1729782171025,2.8468,175.77,175.71,4.68]
[1729782171226,2.8466,175.78,175.73,2.8473]
[1729782171735,5.8793,175.8,175.71,4.68]
[1729782172029,8.7256,175.8,175.76,2.8468]
[1729782172430,2.8464,175.79,175.75,2.847]
[1729782173025,2.8468,175.77,175.73,2.8473]
[1729782173227,25.23769548,175.8,175.68,1.1715]
[1729782173424,25.23769548,175.8,175.7,4.68]
[1729782173620,2.8467,175.77,175.72,2.8474]
[1729782174021,4.68,175.79,175.67,1.2033]
[1729782174228,2.8472,175.74,175.7,2.8477]
[1729782174429,24.03839548,175.78,175.7,2.8477]
[1729782174927,24.03839548,175.78,175.67,4.68]
[1729782175128,24.03839548,175.78,175.68,2.848]
[1729782175332,2.847,175.75,175.68,2.848]
[1729782175528,24.03839548,175.78,175.67,4.68]
[1729782175728,1.237,175.74,175.67,2.8482]
[1729782176330,1.237,175.74,175.68,2.8482]
[1729782176835,1.237,175.74,175.68,2.8481]
[1729782177434,2.8474,175.73,175.66,4.68]
[1729782177622,1.237,175.74,175.66,4.68]
[1729782178938,1.237,175.74,175.72,2.8474]
[1729782179122,1.237,175.74,175.66,4.68]
[1729782180726,1.237,175.74,175.7,2.8477]
[1729782180926,2.8476,175.72,175.66,4.68]
[1729782181128,1.237,175.74,175.68,2.8481]
[1729782182028,1.237,175.74,175.67,2.8482]
[1729782182231,24.03839548,175.72,175.6,0.7844]
[1729782182436,1.2467,175.71,175.61,4.68]
[1729782182639,4.0944,175.71,175.61,4.68]
[1729782182928,1.2467,175.71,175.61,4.68]
[1729782183132,1.2467,175.71,175.69,2.848]
[1729782183333,1.237,175.74,175.65,28.71839548]
[1729782183530,1.237,175.74,175.66,4.68]
[1729782184133,1.2747,175.79,175.68,24.03839548]
[1729782184434,4.68,175.82,175.69,1.2017]
[1729782184636,4.68,175.82,175.7,4.68]
[1729782184829,2.8465,175.79,175.75,2.8469]
[1729782185029,4.68,175.82,175.75,2.8469]
[1729782186026,4.68,175.82,175.7,4.68]
[1729782186225,2.8463,175.8,175.7,4.68]
[1729782186431,24.03839548,175.81,175.68,4.68]
[1729782186630,2.8472,175.75,175.71,2.8475]
[1729782186827,28.71839548,175.78,175.72,1.42385755]
[1729782187028,28.71839548,175.78,175.68,0.53476011]
[1729782187029,28.71839548,175.78,175.73,1.42385755]
[1729782187333,2.8473,175.74,175.7,5.12623726]
[1729782187533,28.71839548,175.78,175.71,3.70249334]
[1729782187742,2.8465,175.79,175.73,2.8473]
[1729782187936,4.68,175.79,175.73,2.8473]
[1729782188240,24.03839548,175.78,175.73,2.8473]
[1729782188435,24.03839548,175.78,175.68,4.68]
[1729782188631,2.8475,175.73,175.7,2.8478]
[1729782188939,28.71839548,175.75,175.64,4.68]
[1729782189139,2.8478,175.71,175.67,2.8483]
[1729782189333,3.7553,175.74,175.67,2.8483]
[1729782189535,3.7553,175.74,175.64,4.68]
[1729782189940,2.8478,175.71,175.64,4.68]
[1729782190334,24.03839548,175.73,175.6,0.7844]
[1729782190538,2.8482,175.68,175.58,1.2071]
[1729782190841,2.8482,175.68,175.59,4.68]
[1729782191537,2.8482,175.68,175.64,2.8487]
[1729782192139,2.8481,175.69,175.64,2.8487]
[1729782192338,3.7553,175.74,175.63,4.68]
[1729782192540,3.7553,175.74,175.64,4.68]
[1729782192841,24.03839548,175.73,175.65,4.68]
[1729782193635,24.03839548,175.73,175.65,2.8486]
[1729782194036,3.7553,175.74,175.61,4.68]
[1729782194838,2.8477,175.71,175.67,2.8482]
[1729782195034,24.03839548,175.73,175.61,4.68]
[1729782195239,24.03839548,175.73,175.64,2.8487]
[1729782195240,2.8483,175.68,175.64,2.8487]
[1729782195443,4.68,175.71,175.61,4.68]
[1729782195936,2.8482,175.69,175.64,2.8488]
[1729782196142,2.8482,175.69,175.61,4.68]
[1729782197049,4.68,175.71,175.61,4.68]
[1729782197343,8.4353,175.74,175.62,24.03839548]
[1729782197544,8.4353,175.74,175.68,2.8481]
[1729782197735,2.8475,175.73,175.65,4.68]
[1729782198137,2.8475,175.73,175.67,2.8483]
[1729782198347,2.8475,175.73,175.65,4.68]
[1729782200049,3.7553,175.74,175.65,4.68]
[1729782200252,24.03839548,175.73,175.63,1.42423059]
[1729782200439,4.68,175.72,175.62,4.68]
[1729782200844,2.848,175.69,175.65,2.8486]
[1729782201242,4.68,175.72,175.69,2.8479]
[1729782201545,3.7553,175.74,175.63,1.42423059]
[1729782202150,2.8475,175.72,175.68,2.8481]
[1729782202337,3.7553,175.74,175.63,1.42423059]
[1729782203342,2.8477,175.71,175.62,4.68]
[1729782203538,2.8477,175.71,175.62,6.10423059]
[1729782203747,2.8477,175.71,175.64,2.8487]
[1729782204052,3.7553,175.74,175.62,4.68]
[1729782204247,3.7553,175.74,175.61,8.38321952]
[1729782205047,3.7553,175.74,175.61,6.10423059]
[1729782205246,3.7553,175.74,175.65,2.8485]
[1729782205437,24.03839548,175.72,175.61,6.10423059]
[1729782205638,3.7553,175.74,175.62,1.42423059]
[1729782205843,2.8474,175.73,175.64,24.03839548]
[1729782206137,2.8474,175.73,175.65,6.10423059]
[1729782206542,2.8474,175.73,175.65,6.10426581]
[1729782206853,2.8474,175.73,175.69,2.848]
[1729782207253,2.8476,175.72,175.69,2.848]
[1729782207843,3.7553,175.74,175.69,2.848]
[1729782208044,2.8474,175.73,175.69,2.848]
[1729782209254,2.8476,175.72,175.69,2.848]
[1729782210346,2.8476,175.72,175.7,2.8478]
[1729782210742,3.7553,175.74,175.7,2.8478]
[1729782210947,1.2635,175.74,175.67,2.8482]
[1729782211250,4.68,175.77,175.67,24.03839548]
[1729782211555,1.2759,175.79,175.7,24.03839548]
[1729782211748,1.2759,175.79,175.7,28.71839548]
[1729782212050,4.68,175.82,175.7,28.71839548]
[1729782212255,4.68,175.82,175.74,2.8471]
[1729782212549,7.526,175.82,175.74,19.71301354]
[1729782212745,4.68,175.82,175.74,19.71301354]
[1729782212946,4.68,175.82,175.76,2.8468]
[1729782213249,4.68,175.82,175.74,19.71301354]
[1729782213448,2.8462,175.81,175.77,2.8467]
[1729782214456,85.51715472,175.85,175.74,4.68]
[1729782214749,4.68,175.87,175.74,4.68]
[1729782214951,27.70765472,175.88,175.76,24.05715472]
[1729782214952,3.6505,175.88,175.76,24.05715472]
[1729782215252,2.4701,175.88,175.79,24.05715472]
[1729782215444,2.4701,175.88,175.79,4.68]
[1729782215649,2.4701,175.88,175.8,2.8461]
[1729782215650,2.8455,175.85,175.8,2.8461]
[1729782215849,2.4701,175.88,175.79,4.68]
[1729782216857,1.2759,175.88,175.79,28.73715472]
[1729782217255,4.1209,175.88,175.84,2.8454]
[1729782217857,2.8453,175.86,175.79,4.68]
[1729782218161,1.2759,175.88,175.79,4.68]
[1729782218357,2.8454,175.86,175.82,2.8459]
[1729782218758,1.2759,175.88,175.79,4.68]
[1729782218957,2.8457,175.84,175.77,4.68]
[1729782219253,25.33305472,175.88,175.77,4.68]
[1729782219254,24.05715472,175.86,175.77,4.68]
[1729782219455,24.05715472,175.86,175.78,2.8465]
[1729782219656,2.846,175.82,175.78,2.8465]
[1729782220161,2.8458,175.83,175.8,2.8462]
[1729782220464,25.26335472,175.86,175.77,4.68]
[1729782220661,25.26335472,175.86,175.77,6.10345638]
[1729782220858,2.8459,175.83,175.77,4.68]
[1729782221057,4.68,175.87,175.77,4.68]
[1729782221362,2.8451,175.87,175.77,4.68]
[1729782221663,1.2759,175.88,175.79,24.05715472]
[1729782221963,4.68,175.89,175.8,3.70015288]
[1729782222263,4.68,175.89,175.81,6.10313572]
[1729782222468,4.68,175.89,175.82,1.42313572]
[1729782222651,7.5248,175.89,175.84,2.8456]
[1729782223158,2.3495,175.91,175.83,1.42313572]
[1729782223365,4.0179,175.91,175.84,1.42313572]
[1729782223559,4.0179,175.91,175.83,3.70015288]
[1729782223763,4.0179,175.91,175.86,2.8452]
[1729782224560,4.68,175.95,175.85,28.73715472]
[1729782224763,4.68,175.95,175.86,1.42279763]
[1729782225164,4.68,175.95,175.9,2.8446]
[1729782225165,2.844,175.94,175.9,2.8446]
[1729782225361,3.5648,175.97,175.87,24.05715472]
[1729782225763,2.8437,175.96,175.91,2.8443]
[1729782225958,2.3921,175.97,175.89,4.68]
[1729782226558,5.2357,175.97,175.92,2.8442]
[1729782226753,1.1734,175.97,175.89,4.68]
[1729782227164,2.8433,175.99,175.95,2.8438]
[1729782227368,5.8222,176.01,175.95,2.8438]
[1729782227570,2.4442,176.03,175.93,4.6]
[1729782227768,2.4442,176.03,175.93,28.65715472]
[1729782228158,2.4442,176.03,175.93,4.6]
[1729782228759,2.8432,175.99,175.94,2.8439]
[1729782228960,2.8432,175.99,175.93,4.6]
[1729782228961,2.4442,176.03,175.93,4.6]
[1729782229162,2.4442,176.03,175.9,24.05715472]
[1729782229381,2.8438,175.95,175.91,4.6]
[1729782229627,4.6,175.99,175.91,4.6]
[1729782230286,2.8436,175.97,175.92,2.8442]
[1729782230576,4.6,175.99,175.88,1.42224689]
[1729782230782,4.6,175.99,175.87,24.05715472]
[1729782230783,24.05715472,175.98,175.87,4.6]
[1729782231174,2.8441,175.94,175.89,2.8448]
[1729782231385,1.242,175.97,175.87,4.6]
[1729782231785,1.242,175.97,175.87,28.65715472]
[1729782232387,1.242,175.97,175.88,1.42224809]
[1729782232582,2.4442,176.03,175.9,24.05715472]
[1729782232885,2.843,176.0,175.94,2.8439]
[1729782233274,4.6,176.02,175.91,4.6]
[1729782233475,28.65715472,176.02,175.93,2.8441]
[1729782233876,28.65715472,176.02,175.91,4.6]
[1729782234073,24.05715472,175.99,175.91,4.6]
[1729782234279,5.8052,175.98,175.88,4.6]
[1729782234483,2.844,175.95,175.9,2.8446]
[1729782235681,2.844,175.95,175.91,2.8444]
[1729782236194,2.8441,175.94,175.9,2.8446]
[1729782236694,5.8052,175.98,175.88,4.6]
[1729782236986,2.8439,175.95,175.9,2.8445]
[1729782237489,2.8439,175.95,175.91,2.8444]
[1729782237683,2.8435,175.97,175.88,4.6]
[1729782238082,2.8435,175.97,175.9,2.8445]
[1729782238281,2.8435,175.97,175.88,4.6]
[1729782238589,7.0442,176.03,175.96,2.8435]
[1729782238775,2.4442,176.03,175.93,4.6]
[1729782239379,2.4442,176.03,175.98,2.8432]
[1729782239380,5.2868,176.03,175.98,2.8432]
[1729782239583,2.4442,176.03,175.98,2.8432]
[1729782239781,2.4442,176.03,175.93,4.6]
[1729782239981,2.8431,176.0,175.96,2.8436]
[1729782240178,2.4442,176.03,175.93,4.6]
[1729782240381,2.8427,176.02,175.98,2.8432]
[1729782240985,1.2715,176.03,175.97,4.58]
[1729782241185,2.8423,176.05,175.97,4.58]
[1729782241405,1.1947,176.06,175.97,4.58]
[1729782241737,1.1947,176.06,175.86,1.181]
[1729782241738,1.1947,176.06,175.92,24.05715472]
[1729782241925,1.1947,176.06,175.93,4.58]
[1729782242208,2.8423,176.05,176.0,2.8429]
[1729782242608,5.7747,176.06,175.94,24.05715472]
[1729782242805,5.7747,176.06,175.95,4.58]
[1729782242997,5.7747,176.06,175.92,24.05715472]
[1729782242998,4.58,176.06,175.94,4.58]
[1729782243203,1.2704,176.05,175.94,4.58]
[1729782243403,2.8428,176.02,175.97,2.8434]
[1729782243706,1.2704,176.05,175.95,24.05715472]
[1729782243908,2.8424,176.04,175.95,24.05715472]
[1729782244502,1.2704,176.05,176.0,2.843]
[1729782244704,1.2704,176.05,175.95,24.05715472]
[1729782245104,2.8425,176.03,175.99,2.8431]
[1729782245407,1.2704,176.05,175.95,24.05715472]
[1729782245597,2.8425,176.04,175.99,2.8431]
[1729782245800,1.2704,176.05,175.99,2.8431]
[1729782246291,2.8426,176.03,175.99,2.8431]
[1729782246491,1.2704,176.05,175.98,2.8433]
[1729782247089,1.2704,176.05,175.95,24.05715472]
[1729782247289,2.8424,176.04,175.99,2.843]
[1729782247984,1.2704,176.05,175.95,24.05715472]
[1729782248185,2.842,176.07,176.02,2.8426]
[1729782248389,2.842,176.07,176.0,4.58]
[1729782248990,5.7848,176.11,176.0,4.58]
[1729782249303,5.7848,176.11,176.0,28.63715472]
[1729782249684,4.0461,176.11,176.06,2.8419]
[1729782249896,1.1992,176.12,176.04,4.58]
[1729782250098,1.1992,176.12,176.03,24.05715472]
[1729782250099,1.1992,176.12,176.05,4.58]
[1729782250399,5.7477,176.15,176.05,4.58]
[1729782250400,2.8407,176.14,176.05,4.58]
[1729782250597,5.7477,176.15,176.05,4.58]
[1729782250782,2.841,176.13,176.08,2.8416]
[1729782250985,5.7477,176.15,176.05,4.58]
[1729782251393,29.80485472,176.15,176.02,4.58]
[1729782251895,29.80485472,176.15,175.97,24.05715472]
[1729782251896,24.05715472,176.12,175.97,24.05715472]
[1729782252097,24.05715472,176.09,175.98,4.58]
[1729782252398,1.171,176.08,175.98,4.58]
[1729782252599,4.58,176.11,176.0,24.05715472]
[1729782252902,2.8414,176.1,176.05,2.842]
[1729782253202,2.8414,176.1,176.03,4.58]
[1729782253593,2.8414,176.1,176.05,2.8421]
[1729782253993,2.8419,176.07,176.03,4.58]
[1729782254194,24.05715472,176.12,176.02,2.8425]
[1729782254496,24.05715472,176.1,175.95,25.21985472]
[1729782254702,2.8422,176.05,175.96,4.58]
[1729782255002,2.8422,176.05,176.0,2.843]
[1729782256300,24.05715472,176.07,175.97,4.58]
[1729782256603,1.2516,176.04,175.97,4.58]
[1729782256999,1.2516,176.04,175.92,24.05715472]
[1729782257200,25.30875472,176.04,175.93,4.64]
[1729782257504,25.30875472,176.04,175.94,2.8439]
[1729782257896,25.30875472,176.04,175.89,25.25695472]
[1729782257897,25.30875472,176.04,175.91,4.64]
[1729782258099,24.05715472,176.01,175.93,2.8441]
[1729782258403,4.64,176.0,175.93,2.8441]
[1729782258602,2.8433,175.98,175.91,4.64]
[1729782258804,2.8433,175.98,175.94,2.8439]
[1729782259800,4.64,176.0,175.91,4.64]
[1729782260108,4.64,176.02,175.92,24.05715472]
[1729782260499,4.64,176.02,175.97,2.8434]
[1729782260500,7.4828,176.02,175.97,2.8434]
[1729782260700,4.64,176.02,175.97,2.8434]
[1729782261613,2.8428,176.01,175.97,2.8434]
[1729782261807,4.64,176.02,175.92,24.05715472]
[1729782262703,2.8426,176.03,175.92,24.05715472]
[1729782262901,5.8916,176.04,175.94,24.05715472]
[1729782263100,1.2516,176.04,176.01,2.8428]
[1729782263308,4.094,176.04,175.95,4.64]
[1729782263708,1.2516,176.04,175.95,4.64]
[1729782264209,24.05715472,176.12,175.98,24.05715472]
[1729782264407,4.64,176.11,176.04,2.8422]
[1729782264711,4.64,176.11,175.99,4.64]
[1729782265103,24.05715472,176.09,176.02,2.8426]
[1729782265310,24.05715472,176.09,175.99,4.64]
[1729782265509,24.05715472,176.09,175.96,4.64]
[1729782265710,2.8423,176.05,175.99,2.843]
[1729782265911,2.8423,176.05,175.96,4.64]
[1729782266413,4.64,176.07,175.99,15.0106449]
[1729782266806,7.482,176.07,176.02,2.8426]
[1729782267007,19.6506449,176.07,175.96,19.6506449]
[1729782267416,2.8424,176.04,175.96,19.6506449]
[1729782268117,2.8425,176.04,175.96,19.6506449]
[1729782269310,19.6506449,176.07,175.96,19.6506449]
[1729782269917,2.8423,176.05,175.96,19.6506449]
[1729782270309,2.8423,176.04,176.0,2.8429]
[1729782270511,4.64,176.1,176.01,15.0106449]
[1729782270814,4.64,176.1,176.03,15.0106449]
[1729782271213,2.8416,176.09,176.05,2.8421]
[1729782271413,4.64,176.1,176.05,2.8421]
[1729782271615,4.64,176.11,176.03,15.0106449]
[1729782271910,3.6627,176.12,176.0,4.64]
[1729782271911,8.3027,176.12,176.05,15.0106449]
[1729782272111,19.6506449,176.16,176.05,15.0106449]
[1729782272419,4.64,176.16,176.06,24.01480387]
[1729782272605,4.64,176.18,176.06,24.01480387]
[1729782272920,4.64,176.18,176.09,24.01480387]
[1729782273116,4.64,176.18,176.09,28.65480387]
[1729782273322,7.4802,176.18,176.13,2.8408]
[1729782273520,7.4802,176.18,176.09,28.65480387]
[1729782273521,4.64,176.18,176.09,28.65480387]
[1729782273720,4.64,176.18,176.09,4.64]
[1729782274223,2.8407,176.15,176.1,2.8412]
[1729782274514,4.64,176.18,176.09,4.64]
[1729782274911,4.64,176.18,176.1,2.8414]
[1729782275511,2.8407,176.15,176.1,2.8414]
[1729782275816,24.01480387,176.17,176.05,4.64]
[1729782276017,24.01480387,176.17,176.04,4.64]
[1729782276411,2.8412,176.12,176.04,4.64]
[1729782276606,24.01480387,176.17,176.04,4.64]
[1729782276607,4.64,176.14,176.04,4.64]
[1729782278017,4.64,176.14,176.07,2.8418]
[1729782278018,2.8413,176.11,176.07,2.8418]
[1729782279126,2.8416,176.09,176.05,2.8421]
[1729782279314,24.01480387,176.12,175.98,24.01480387]
[1729782279720,2.842,176.07,176.02,2.8425]
[1729782279916,4.64,176.09,175.99,4.64]
[1729782280718,7.4816,176.09,175.99,4.64]
[1729782281425,7.4816,176.09,176.04,2.8422]
[1729782283622,2.842,176.06,176.01,2.8428]
[1729782284323,2.8424,176.04,175.99,7.483]
[1729782284521,28.65480387,176.09,175.96,4.64]
[1729782284732,24.01480387,176.06,175.94,4.64]
[1729782284916,24.01480387,176.06,175.95,2.8437]
[1729782284917,2.843,176.0,175.95,2.8437]
[1729782285432,8.3654,176.05,175.89,24.01480387]
[1729782285433,4.64,176.01,175.89,24.01480387]
[1729782285637,4.64,176.0,175.9,4.64]
[1729782286021,2.8435,175.97,175.92,2.8442]
[1729782286730,2.8433,175.98,175.93,2.844]
[1729782286923,3.7254,176.05,175.93,4.62]
[1729782287324,3.7254,176.05,175.95,24.01480387]
[1729782288326,2.8426,176.03,175.99,2.8431]
[1729782289026,1.2006,176.05,175.97,4.62]
[1729782289231,1.2573,176.09,175.97,4.62]
[1729782289534,4.62,176.08,175.97,4.62]
[1729782289727,2.842,176.06,176.01,2.8427]
[1729782290222,7.4618,176.08,175.98,24.01480387]
[1729782291034,7.4618,176.08,176.03,2.8425]
[1729782291918,2.8419,176.07,176.03,2.8425]
[1729782292117,4.62,176.08,175.98,24.01480387]
[1729782292325,4.62,176.08,175.96,3.1287]
[1729782292529,24.01480387,176.06,175.92,24.01480387]
[1729782292729,24.01480387,176.06,175.96,2.8436]
[1729782293230,24.01480387,176.06,175.93,4.62]
[1729782293419,24.01480387,176.06,175.97,2.8435]
[1729782293921,2.8425,176.04,175.97,2.8435]
[1729782294229,4.62,176.03,175.97,2.8435]
[1729782295225,2.8429,176.01,175.97,2.8435]
[1729782298033,2.843,176.0,175.96,2.8435]
[1729782300030,2.5084,176.02,175.96,2.8435]
[1729782300226,2.8429,176.01,175.96,2.8435]
[1729782303024,2.5084,176.02,175.93,4.62]
[1729782303231,2.5084,176.02,175.88,1.2025]
[1729782303232,15.01835863,175.98,175.88,1.2025]
[1729782303539,2.8438,175.95,175.89,4.62]
[1729782303734,1.174,176.01,175.96,2.8436]
[1729782303936,1.174,176.01,175.91,15.01835863]
[1729782304233,4.0169,176.01,175.97,2.8435]
[1729782304631,4.0169,176.01,175.91,15.01835863]
[1729782305036,2.8429,176.01,175.91,15.01835863]
[1729782305235,15.01835863,176.06,175.99,2.843]
[1729782305536,2.8425,176.04,175.99,2.843]
[1729782306031,2.8425,176.04,175.97,2.8434]
[1729782306235,2.8425,176.04,175.95,19.63835863]
[1729782306736,7.4622,176.05,176.01,2.8428]
[1729782307329,4.62,176.05,175.95,19.63835863]
[1729782307535,2.8424,176.04,176.0,2.843]
[1729782307743,4.62,176.05,175.95,19.63835863]
[1729782308043,15.01835863,175.99,175.92,4.62]
[1729782308444,15.01835863,175.99,175.89,15.01835863]
[1729782308445,2.8438,175.95,175.91,2.8444]
[1729782308630,19.63835863,175.97,175.86,20.83995863]
[1729782308836,19.63835863,175.97,175.86,15.01835863]
[1729782309032,2.8441,175.94,175.89,2.8446]
[1729782309340,2.8441,175.94,175.86,4.62]
[1729782309341,15.01835863,175.95,175.86,4.62]
[1729782309544,2.8444,175.92,175.87,2.845]
[1729782309747,15.01835863,175.92,175.81,16.21965863]
[1729782309940,15.01835863,175.92,175.82,4.62]
[1729782310647,15.01835863,175.92,175.77,1.1625]
[1729782310648,15.01835863,175.87,175.75,4.62]
[1729782310844,15.01835863,175.87,175.78,15.01835863]
[1729782311033,15.01835863,175.89,175.84,2.8455]
[1729782311241,2.8448,175.9,175.84,2.8455]
[1729782311443,16.28485863,175.91,175.84,2.8455]
[1729782311738,16.28485863,175.91,175.76,15.01835863]
[1729782311739,15.01835863,175.87,175.76,15.01835863]
[1729782312133,15.01835863,175.82,175.7,19.63835863]
[1729782312341,28.68162997,175.82,175.7,4.62]
[1729782313143,24.06162997,175.8,175.7,4.62]
[1729782314048,24.06162997,175.8,175.72,2.8474]
[1729782314049,2.8467,175.78,175.72,2.8474]
[1729782314242,4.62,175.78,175.72,2.8474]
[1729782314944,2.8469,175.76,175.7,7.4677]
[1729782315241,25.21782997,175.77,175.65,1.9525]
[1729782315437,25.21782997,175.77,175.62,25.22992997]
[1729782315438,25.21782997,175.77,175.66,4.62]
[1729782315653,1.2472,175.76,175.67,2.8482]
[1729782316048,1.2472,175.76,175.64,4.62]
[1729782316049,2.8476,175.72,175.66,2.8485]
[1729782316545,2.8476,175.72,175.67,2.8483]
[1729782316747,4.62,175.73,175.64,4.62]
[1729782317540,1.2472,175.76,175.64,4.62]
[1729782317735,5.9272,175.76,175.66,24.06162997]
[1729782318145,5.9272,175.76,175.72,2.8475]
[1729782319151,5.9272,175.76,175.68,4.68]
[1729782319749,4.68,175.79,175.71,2.8476]
[1729782319950,4.0856,175.81,175.68,28.74162997]
[1729782320143,4.68,175.8,175.69,1.2058]
[1729782320752,7.5264,175.8,175.72,2.8475]
[1729782320945,4.68,175.8,175.69,1.2058]
[1729782321547,4.68,175.8,175.66,24.06162997]
[1729782321746,4.68,175.8,175.67,4.68]
[1729782322048,24.06162997,175.75,175.64,4.68]
[1729782322249,2.8475,175.73,175.67,2.8482]
[1729782322447,1.2394,175.81,175.66,24.06162997]
[1729782322850,2.8465,175.79,175.73,2.8473]
[1729782323846,2.8466,175.78,175.73,2.8473]
[1729782324351,2.8466,175.78,175.74,2.8472]
[1729782324554,24.06162997,175.82,175.69,4.68]
[1729782324754,4.68,175.81,175.69,28.74162997]
[1729782325449,7.5261,175.81,175.72,2.8474]
[1729782325653,7.5261,175.81,175.69,28.74162997]
[1729782326253,4.68,175.81,175.69,28.74162997]
[1729782327448,4.68,175.81,175.69,31.55478223]
[1729782328762,7.5262,175.81,175.75,2.8469]
[1729782328959,4.68,175.81,175.7,4.68]
[1729782329161,28.74162997,175.81,175.7,4.68]
[1729782329363,28.74162997,175.81,175.66,24.06162997]
[1729782329364,24.06162997,175.78,175.66,24.06162997]
[1729782329563,7.1491,175.77,175.66,4.68]
[1729782329764,2.8471,175.75,175.7,2.8477]
[1729782330854,2.8471,175.75,175.66,4.68]
[1729782330855,2.8474,175.73,175.68,2.8481]
[1729782331372,2.8474,175.73,175.63,25.21862997]
[1729782331373,2.8483,175.68,175.63,2.8489]
[1729782331566,24.06162997,175.72,175.59,4.68]
[1729782332466,24.06162997,175.7,175.59,4.68]
[1729782332663,5.8372,175.69,175.59,4.68]
[1729782332864,5.8372,175.69,175.56,31.89742997]
[1729782333064,2.3725,175.68,175.56,31.89742997]
[1729782334368,64.3051107,175.79,175.61,24.06162997]
[1729782334565,24.06162997,175.77,175.62,4.68]
[1729782334766,2.8472,175.75,175.69,2.8479]
[1729782334965,24.06162997,175.77,175.69,2.8479]
[1729782335366,7.527,175.76,175.7,2.8477]
[1729782335865,7.527,175.76,175.71,2.8477]
[1729782336268,2.8468,175.77,175.66,4.68]
[1729782336573,8.3606,175.78,175.67,24.06162997]
[1729782337070,7.1125,175.78,175.67,24.06162997]
[1729782337366,9.9591,175.78,175.67,24.06162997]
[1729782337567,7.1125,175.78,175.67,24.06162997]
[1729782337774,7.1125,175.78,175.7,2.8478]
[1729782338177,7.1125,175.78,175.68,4.68]
[1729782338473,7.1125,175.78,175.68,2.8482]
[1729782338474,2.8474,175.73,175.68,2.8482]
[1729782339178,2.8474,175.73,175.65,6.6659]
[1729782339359,25.31752997,175.77,175.69,2.848]
[1729782339559,2.8472,175.74,175.69,2.848]
[1729782339969,9.9592,175.78,175.7,2.8478]
[1729782340171,7.1125,175.78,175.67,24.06162997]
[1729782340877,2.8469,175.76,175.67,24.06162997]
[1729782341066,2.8469,175.76,175.65,6.6659]
[1729782341373,2.8467,175.77,175.72,2.8475]
[1729782341872,2.847,175.75,175.65,1.2047]
[1729782342072,1.1963,175.77,175.65,4.68]
[1729782342667,24.06162997,175.76,175.65,4.68]
[1729782342973,24.06162997,175.73,175.58,24.06162997]
[1729782343166,2.8482,175.68,175.63,2.8488]
[1729782343368,24.06162997,175.7,175.61,4.68]